[Event "FIDE World Senior-50 CC 2023"]
[Site "Terrasini"]
[Date "2023.10.26"]
[Round "2.15"]
[White "Issakainen, Ari"]
[Black "Vlassov, Nikolai"]
[Result "0-1"]
[ECO "E10"]
[WhiteElo "2152"]
[BlackElo "2283"]
[Annotator "RC"]
[PlyCount "64"]
[EventDate "2023.10.22"]
[EventType "swiss"]
[EventCountry "ITA"]
[SourceTitle "playchess.com"]
[Source "ChessBase"]
[SourceQuality "1"]
[TimeControl "40/5400+30:1800+30"]

1. d4 {[%emt 0:00:13]} Nf6 {[%emt 0:00:05]} 2. c4 {[%emt 0:00:14]} Nc6 {[%emt 0:00:06]} 3. Nf3 {[%emt 0:02:15]} e6 {[%emt 0:00:06]} 4. a3 {[%emt 0:01:35]} g6 {[%emt 0:00:07]} 5. Nc3 {[%emt 0:00:27]} Bg7 {[%emt 0:00:06]} 6. d5 {[%emt 0:02:16]} Ne7 {[%emt 0:00:11]} 7. e4 {[%emt 0:00:58]} d6 {[%emt 0:00:05]} 8. Be2 {[%emt 0:03:17]} O-O {[%emt 0:00:05]} 9. O-O {[%emt 0:00:13]} exd5 {[%emt 0:01:25]} 10. cxd5 {[%emt 0:00:33]} c6 {[%emt 0:00:07]} 11. dxc6 {[%emt 0:09:26]} bxc6 {[%emt 0:00:34]} 12. Bg5 {[%emt 0:05:27]} h6 {[%emt 0:02:41]} 13. Bf4 {[%emt 0:03:58]} d5 {[%emt 0:00:23]} 14. exd5 {[%emt 0:01:51]} Nexd5 {[%emt 0:01:11]} 15. Nxd5 {[%emt 0:03:23]} Nxd5 {[%emt 0:01:22]} 16. Be5 {[%emt 0:00:16]} Bxe5 {[%emt 0:01:09]} 17. Nxe5 {[%emt 0:00:07]} Qf6 {[%emt 0:00:17]} 18. Nd3 {[%emt 0:08:24]} Bf5 {[%emt 0:01:12]} 19. Qd2 {[%emt 0:01:21]} Rad8 {[%emt 0:01:36]} 20. Nb4 {[%emt 0:07:36]} Rfe8 {[%emt 0:02:32]} 21. Rfe1 {[%emt 0:06:55]} a5 {[%emt 0:08:04]} 22. Nd3 {[%emt 0:09:03]} Bxd3 {[%emt 0:02:35]} 23. Bxd3 {[%emt 0:05:11]} Rxe1+ {[%emt 0:00:26]} 24. Qxe1 {[%emt 0:00:14]} Qxb2 {[%emt 0:00:49]} 25. g3 {[%emt 0:06:44]} Nf6 {[%emt 0:05:27]} 26. Rb1 {[%emt 0:03:43]} Qxa3 {[%emt 0:03:02]} 27. Bc4 {[%emt 0:07:37]} Qc5 {[%emt 0:11:09]} 28. Bb3 {[%emt 0:03:59]} Re8 {[%emt 0:01:38]} 29. Qd2 {[%emt 0:01:40]} Ne4 {[%emt 0:02:05]} 30. Qf4 {[%emt 0:02:20]} Qf5 {[%emt 0:00:30]} 31. Qe3 {[%emt 0:02:14]} Nd6 {[%emt 0:02:02]} 32. Qc1 {[%emt 0:00:38]} Re2 {[%emt 0:00:17]} 0-1

[Event "FIDE World Senior-50 CC 2023"]
[Site "Terrasini"]
[Date "2023.10.26"]
[Round "2.16"]
[White "Nadanian, Ashot"]
[Black "Filipovich, David"]
[Result "1-0"]
[ECO "A40"]
[WhiteElo "2279"]
[BlackElo "1938"]
[Annotator "RC"]
[PlyCount "37"]
[EventDate "2023.10.22"]
[EventType "swiss"]
[EventCountry "ITA"]
[SourceTitle "playchess.com"]
[Source "ChessBase"]
[SourceQuality "1"]
[TimeControl "40/5400+30:1800+30"]

1. d4 {[%emt 0:00:16]} g6 {[%emt 0:00:27]} 2. c4 {[%emt 0:00:38]} Bg7 {[%emt 0:00:11]} 3. Nc3 {[%emt 0:00:10]} c5 {[%emt 0:00:36]} 4. d5 {[%emt 0:01:01]} Bxc3+ {[%emt 0:00:29]} 5. bxc3 {[%emt 0:00:08]} f5 {[%emt 0:00:08]} 6. e4 {[%emt 0:01:41]} fxe4 {[%emt 0:03:18]} 7. f3 {[%emt 0:00:19]} Nf6 {[%emt 0:02:26]} 8. fxe4 {[%emt 0:01:22]} d6 {[%emt 0:00:08]} 9. Bd3 {[%emt 0:03:31]} Qa5 {[%emt 0:07:49]} 10. Qc2 {[%emt 0:04:35]} Nbd7 {[%emt 0:00:40]} 11. Nf3 {[%emt 0:00:32]} Ng4 {[%emt 0:10:07]} 12. O-O {[%emt 0:04:11]} Nde5 {[%emt 0:01:49]} 13. Bf4 {[%emt 0:02:40]} O-O {[%emt 0:31:12]} 14. Bxe5 {[%emt 0:16:19]} Ne3 {[%emt 0:12:07]} 15. Qc1 {[%emt 0:00:29]} Nxf1 {[%emt 0:00:11]} 16. Qh6 {[%emt 0:01:30]} Rf7 {[%emt 0:07:27]} 17. Ng5 {[%emt 0:00:53]} Ne3 {[%emt 0:03:08]} 18. Nxf7 {[%emt 0:00:46]} dxe5 {[%emt 0:02:15]} 19. Ng5 {[%emt 0:58:59]} 1-0

[Event "FIDE World Senior-50 CC 2023"]
[Site "Terrasini"]
[Date "2023.10.26"]
[Round "2.17"]
[White "Lasinskas, Povilas"]
[Black "Mantovani, Renzo"]
[Result "1-0"]
[ECO "D61"]
[WhiteElo "2143"]
[BlackElo "2236"]
[Annotator "RC"]
[PlyCount "140"]
[EventDate "2023.10.22"]
[EventType "swiss"]
[EventCountry "ITA"]
[SourceTitle "playchess.com"]
[Source "ChessBase"]
[SourceQuality "1"]
[TimeControl "40/5400+30:1800+30"]

1. d4 {[%emt 0:07:13]} d5 {[%emt 0:00:25]} 2. c4 {[%emt 0:00:08]} e6 {[%emt 0:00:08]} 3. Nf3 {[%emt 0:00:06]} Nf6 {[%emt 0:02:53]} 4. Nc3 {[%emt 0:00:18]} Be7 {[%emt 0:01:02]} 5. Bg5 {[%emt 0:00:16]} Nbd7 {[%emt 0:00:30]} 6. e3 {[%emt 0:00:13]} h6 {[%emt 0:00:30]} 7. Bh4 {[%emt 0:00:36]} O-O {[%emt 0:00:12]} 8. Qc2 {[%emt 0:00:18]} a6 {[%emt 0:00:53]} 9. a3 {[%emt 0:01:57]} dxc4 {[%emt 0:03:32]} 10. Bxc4 {[%emt 0:00:06]} b5 {[%emt 0:00:08]} 11. Ba2 {[%emt 0:00:06]} Bb7 {[%emt 1:25:47]} 12. Rd1 {[%emt 0:01:29]} Qc8 {[%emt 0:00:00]} 13. O-O {[%emt 0:00:23]} c5 {[%emt 0:00:00]} 14. d5 {[%emt 0:01:50]} exd5 {[%emt 0:00:00]} 15. Nxd5 {[%emt 0:00:30]} Nxd5 {[%emt 0:00:00]} 16. Bxd5 {[%emt 0:00:40]} Nf6 {[%emt 0:00:00]} 17. Bxb7 {[%emt 0:02:42]} Qxb7 {[%emt 0:00:00]} 18. Rd2 {[%emt 0:04:07]} Rfd8 {[%emt 0:00:00]} 19. Rfd1 {[%emt 0:00:25]} Rxd2 {[%emt 0:00:00]} 20. Rxd2 {[%emt 0:00:20]} Rc8 {[%emt 0:00:00]} 21. h3 {[%emt 0:06:02]} Ne4 {[%emt 0:00:00]} 22. Rd1 {[%emt 0:01:44]} g5 {[%emt 0:00:00]} 23. Bg3 {[%emt 0:00:15]} Nxg3 {[%emt 0:00:00]} 24. fxg3 {[%emt 0:00:02]} Qc6 {[%emt 0:00:00]} 25. e4 {[%emt 0:06:31]} c4 {[%emt 0:00:00]} 26. Nd4 {[%emt 0:05:19]} Bc5 {[%emt 0:00:00]} 27. Kh2 {[%emt 0:00:06]} Bxd4 {[%emt 0:00:00]} 28. Rxd4 {[%emt 0:00:05]} Re8 {[%emt 0:00:00]} 29. Qd1 {[%emt 0:08:41]} Qf6 {[%emt 0:00:00]} 30. Qd2 {[%emt 0:01:20]} Re6 {[%emt 0:00:00]} 31. a4 {[%emt 0:04:06]} Kg7 {[%emt 0:00:00]} 32. axb5 {[%emt 0:00:34]} axb5 {[%emt 0:00:00]} 33. Rd5 {[%emt 0:00:29]} Re5 {[%emt 0:00:00]} 34. Qb4 {[%emt 0:04:23]} Rxe4 {[%emt 0:00:00]} 35. Rxb5 {[%emt 0:02:15]} Qe7 {[%emt 0:00:00]} 36. Qc3+ {[%emt 0:03:33]} Qf6 {[%emt 0:00:00]} 37. Rb4 {[%emt 0:10:38]} Qxc3 {[%emt 0:00:00]} 38. bxc3 {[%emt 0:00:05]} Kf6 {[%emt 0:04:48]} 39. Kg1 {[%emt 0:00:49]} Ke5 {[%emt 0:00:52]} 40. Kf2 {[%emt 0:00:28]} f5 {[%emt 0:02:09]} 41. Rb5+ {[%emt 0:32:09]} Kf6 {[%emt 0:30:22]} 42. Rc5 {[%emt 0:01:21]} h5 {[%emt 0:00:23]} 43. Rc6+ {[%emt 0:00:48]} Ke5 {[%emt 0:01:08]} 44. Rg6 {[%emt 0:01:13]} g4 {[%emt 0:06:13]} 45. Rh6 {[%emt 0:03:50]} Kd5 {[%emt 0:00:00]} 46. Rxh5 {[%emt 0:00:00]} Ke6 {[%emt 0:00:00]} 47. Rh6+ {[%emt 0:00:00]} Ke7 {[%emt 0:00:00]} 48. h4 {[%emt 0:00:00]} Kd7 {[%emt 0:00:00]} 49. h5 {[%emt 0:00:00]} Ke7 {[%emt 0:00:00]} 50. Rc6 {[%emt 0:00:00]} Kf7 {[%emt 0:00:00]} 51. h6 {[%emt 0:00:00]} Kg8 {[%emt 0:00:00]} 52. Rc5 {[%emt 0:00:00]} Re6 {[%emt 0:00:00]} 53. Rxf5 {[%emt 0:00:00]} Rxh6 {[%emt 0:00:00]} 54. Rg5+ {[%emt 0:00:00]} Kf7 {[%emt 0:00:00]} 55. Rxg4 {[%emt 0:00:00]} Rc6 {[%emt 0:00:00]} 56. Kf3 {[%emt 0:00:00]} Kf6 {[%emt 0:00:00]} 57. Rd4 {[%emt 0:00:00]} Ke5 {[%emt 0:00:00]} 58. g4 {[%emt 0:00:00]} Rc5 {[%emt 0:00:28]} 59. Kg3 {[%emt 0:00:00]} Rc8 {[%emt 0:00:09]} 60. g5 {[%emt 0:00:00]} Kf5 {[%emt 0:00:07]} 61. Rd5+ {[%emt 0:00:00]} Ke4 {[%emt 0:00:53]} 62. Rd6 {[%emt 0:00:00]} Ke5 {[%emt 0:00:28]} 63. Rf6 {[%emt 0:00:00]} Rd8 {[%emt 0:02:52]} 64. Rf3 {[%emt 0:00:00]} Rd2 {[%emt 0:00:10]} 65. Kh3 {[%emt 0:00:00]} Ra2 {[%emt 0:00:36]} 66. g6 {[%emt 0:33:01]} Ra6 {[%emt 0:01:17]} 67. Rg3 {[%emt 0:00:00]} Ra8 {[%emt 0:00:03]} 68. g7 {[%emt 0:00:00]} Rg8 {[%emt 0:00:03]} 69. Rg4 {[%emt 0:00:00]} Kf6 {[%emt 0:00:25]} 70. Kh4 {[%emt 0:00:00]} Rh8+ {[%emt 0:02:53]} 1-0

[Event "FIDE World Senior-50 CC 2023"]
[Site "Terrasini"]
[Date "2023.10.26"]
[Round "2.18"]
[White "Estremera Panos, Sergio"]
[Black "Rusek, Walter"]
[Result "1-0"]
[ECO "A11"]
[WhiteElo "2232"]
[BlackElo "1832"]
[Annotator "RC"]
[PlyCount "53"]
[EventDate "2023.10.22"]
[EventType "swiss"]
[EventCountry "ITA"]
[SourceTitle "playchess.com"]
[Source "ChessBase"]
[SourceQuality "1"]
[TimeControl "40/5400+30:1800+30"]

1. Nf3 {[%emt 0:00:16]} d5 {[%emt 0:00:03]} 2. e3 {[%emt 0:00:28]} Nf6 {[%emt 0:00:10]} 3. c4 {[%emt 0:00:33]} c6 {[%emt 0:00:08]} 4. Nc3 {[%emt 0:00:44]} e6 {[%emt 0:00:06]} 5. b3 {[%emt 0:02:37]} Nbd7 {[%emt 0:00:26]} 6. Bb2 {[%emt 0:00:27]} Be7 {[%emt 0:01:41]} 7. d4 {[%emt 0:02:08]} O-O {[%emt 0:00:10]} 8. Bd3 {[%emt 0:00:44]} dxc4 {[%emt 0:01:37]} 9. bxc4 {[%emt 0:01:28]} b6 {[%emt 0:04:19]} 10. e4 {[%emt 0:02:54]} Bb7 {[%emt 0:04:26]} 11. O-O {[%emt 0:04:19]} a6 {[%emt 0:06:29]} 12. Re1 {[%emt 0:07:39]} b5 {[%emt 0:06:57]} 13. e5 {[%emt 0:00:48]} Ne8 {[%emt 0:00:07]} 14. c5 {[%emt 0:04:24]} a5 {[%emt 0:01:38]} 15. Ne4 {[%emt 0:08:33]} Nb8 {[%emt 0:01:58]} 16. Nd6 {[%emt 0:01:20]} Qd7 {[%emt 0:00:29]} 17. Nd2 {[%emt 0:01:31]} Na6 {[%emt 0:00:59]} 18. Re3 {[%emt 0:02:05]} g6 {[%emt 0:03:30]} 19. a3 {[%emt 0:00:26]} Bc8 {[%emt 0:06:27]} 20. h4 {[%emt 0:07:42]} Ng7 {[%emt 0:01:25]} 21. N2e4 {[%emt 0:03:21]} Qd8 {[%emt 0:04:20]} 22. Rh3 {[%emt 0:06:24]} Nc7 {[%emt 0:04:22]} 23. h5 {[%emt 0:01:12]} Nd5 {[%emt 0:01:21]} 24. Qd2 {[%emt 0:02:52]} g5 {[%emt 0:08:37]} 25. h6 {[%emt 0:07:25]} Ne8 {[%emt 0:00:15]} 26. Rg3 {[%emt 0:00:50]} Nf4 {[%emt 0:00:58]} 27. Qxf4 {[%emt 0:00:12]} 1-0

[Event "FIDE World Senior-50 CC 2023"]
[Site "Terrasini"]
[Date "2023.10.26"]
[Round "2.19"]
[White "Folk, Petr"]
[Black "Plotkin, Victor"]
[Result "1/2-1/2"]
[ECO "C43"]
[WhiteElo "2109"]
[BlackElo "2229"]
[Annotator "RC"]
[PlyCount "103"]
[EventDate "2023.10.22"]
[EventType "swiss"]
[EventCountry "ITA"]
[SourceTitle "playchess.com"]
[Source "ChessBase"]
[SourceQuality "1"]
[TimeControl "40/5400+30:1800+30"]

1. e4 {[%emt 0:00:11]} e5 {[%emt 0:00:05]} 2. Nf3 {[%emt 0:00:09]} Nf6 {[%emt 0:00:06]} 3. d4 {[%emt 0:00:37]} Nxe4 {[%emt 0:00:11]} 4. Bd3 {[%emt 0:00:12]} Nc6 {[%emt 0:00:32]} 5. dxe5 {[%emt 0:01:26]} d5 {[%emt 0:01:45]} 6. O-O {[%emt 0:03:40]} Bg4 {[%emt 0:02:17]} 7. Nc3 {[%emt 0:01:24]} Nxc3 {[%emt 0:02:25]} 8. bxc3 {[%emt 0:01:00]} Be7 {[%emt 0:01:04]} 9. Re1 {[%emt 0:00:18]} O-O {[%emt 0:01:54]} 10. Rb1 {[%emt 0:02:16]} Rb8 {[%emt 0:08:00]} 11. h3 {[%emt 0:02:28]} Bh5 {[%emt 0:03:53]} 12. Rb5 {[%emt 0:11:42]} d4 {[%emt 0:02:23]} 13. g4 {[%emt 0:16:41]} a6 {[%emt 0:03:03]} 14. Rb1 {[%emt 0:00:39]} Bg6 {[%emt 0:00:57]} 15. cxd4 {[%emt 0:03:03]} b5 {[%emt 0:15:25]} 16. c3 {[%emt 0:06:11]} Qd5 {[%emt 0:01:49]} 17. Bg5 {[%emt 0:07:09]} Rbd8 {[%emt 0:16:58]} 18. Bxe7 {[%emt 0:03:32]} Nxe7 {[%emt 0:01:17]} 19. a4 {[%emt 0:06:53]} c6 {[%emt 0:04:19]} 20. Ng5 {[%emt 0:03:04]} f6 {[%emt 0:10:35]} 21. exf6 {[%emt 0:06:31]} Rxf6 {[%emt 0:00:11]} 22. Ne4 {[%emt 0:03:28]} Rf7 {[%emt 0:01:41]} 23. axb5 {[%emt 0:01:50]} axb5 {[%emt 0:00:40]} 24. Qb3 {[%emt 0:02:26]} Rf3 {[%emt 0:08:12]} 25. Re3 {[%emt 0:00:37]} Rxe3 {[%emt 0:00:54]} 26. fxe3 {[%emt 0:00:13]} Qxb3 {[%emt 0:01:56]} 27. Rxb3 {[%emt 0:00:07]} Nd5 {[%emt 0:00:20]} 28. Nc5 {[%emt 0:09:06]} Nxe3 {[%emt 0:01:41]} 29. Kf2 {[%emt 0:01:45]} Nd5 {[%emt 0:00:42]} 30. Bxg6 {[%emt 0:00:53]} hxg6 {[%emt 0:00:09]} 31. Nd3 {[%emt 0:00:14]} Rf8+ {[%emt 0:04:33]} 32. Kg3 {[%emt 0:01:13]} g5 {[%emt 0:02:09]} 33. Ne5 {[%emt 0:00:17]} Rf6 {[%emt 0:00:38]} 34. h4 {[%emt 0:01:49]} gxh4+ {[%emt 0:00:18]} 35. Kxh4 {[%emt 0:00:09]} Kh7 {[%emt 0:01:17]} 36. c4 {[%emt 0:01:43]} bxc4 {[%emt 0:00:23]} 37. Nxc4 {[%emt 0:00:08]} Rf4 {[%emt 0:01:12]} 38. Ne5 {[%emt 0:00:29]} Nf6 {[%emt 0:02:29]} 39. Rc3 {[%emt 0:01:25]} Rxd4 {[%emt 0:00:46]} 40. Rxc6 {[%emt 0:00:22]} Re4 {[%emt 0:00:31]} 41. Rc5 {[%emt 0:04:25]} Re1 {[%emt 0:02:12]} 42. Ra5 {[%emt 0:02:11]} Ne4 {[%emt 0:01:43]} 43. Kh3 {[%emt 0:01:02]} Re3+ {[%emt 0:01:31]} 44. Kg2 {[%emt 0:00:25]} Rg3+ {[%emt 0:01:17]} 45. Kh2 {[%emt 0:00:11]} Rc3 {[%emt 0:00:46]} 46. Kg2 {[%emt 0:01:23]} Rg3+ {[%emt 0:03:25]} 47. Kh2 {[%emt 0:00:08]} Rc3 {[%emt 0:00:04]} 48. Kg2 {[%emt 0:00:04]} Kh6 {[%emt 0:08:17]} 49. Nf3 {[%emt 0:03:05]} Rc2+ {[%emt 0:00:28]} 50. Kh3 {[%emt 0:00:31]} Rc3 {[%emt 0:05:28]} 51. Kg2 {[%emt 0:00:38]} Rc2+ {[%emt 0:00:11]} 52. Kh3 {[%emt 0:00:05]} 1/2-1/2

[Event "FIDE World Senior-50 CC 2023"]
[Site "Terrasini"]
[Date "2023.10.27"]
[Round "3.1"]
[White "Novik, Maxim"]
[Black "Adams, Michael"]
[Result "1/2-1/2"]
[ECO "C54"]
[WhiteElo "2375"]
[BlackElo "2670"]
[Annotator "ChessBase"]
[PlyCount "68"]
[EventDate "2023.10.22"]
[EventType "swiss"]
[EventCountry "ITA"]
[SourceTitle "playchess.com"]
[Source "ChessBase"]
[SourceQuality "1"]
[TimeControl "40/5400+30:1800+30"]

1. e4 {[%emt 0:00:02]} e5 {[%emt 0:00:06]} 2. Nf3 {[%emt 0:00:04]} Nc6 {[%emt 0:00:05]} 3. Bc4 {[%emt 0:00:02]} Bc5 {[%emt 0:00:08]} 4. c3 {[%emt 0:00:19]} Nf6 {[%emt 0:00:07]} 5. d4 {[%emt 0:01:14]} exd4 {[%emt 0:00:23]} 6. cxd4 {[%emt 0:00:03]} Bb4+ {[%emt 0:00:13]} 7. Bd2 {[%emt 0:00:33]} Nxe4 {[%emt 0:01:49]} 8. Bxb4 {[%emt 0:00:30]} Nxb4 {[%emt 0:00:07]} 9. Bxf7+ {[%emt 0:00:14]} Kxf7 {[%emt 0:00:12]} 10. Qb3+ {[%emt 0:00:06]} d5 {[%emt 0:01:15]} 11. Ne5+ {[%emt 0:00:11]} Ke6 {[%emt 0:06:16]} 12. Qxb4 {[%emt 0:00:07]} Qf8 {[%emt 0:00:04]} 13. Qxf8 {[%emt 0:00:10]} Rxf8 {[%emt 0:00:02]} 14. f3 {[%emt 0:00:14]} Ng5 {[%emt 0:01:38]} 15. h4 {[%emt 0:00:21]} Nf7 {[%emt 0:00:08]} 16. Nxf7 {[%emt 0:00:06]} Rxf7 {[%emt 0:02:09]} 17. Nc3 {[%emt 0:00:05]} Bd7 {[%emt 0:05:45]} 18. Kf2 {[%emt 0:00:50]} Kd6 {[%emt 0:00:29]} 19. g3 {[%emt 0:00:45]} Raf8 {[%emt 0:28:41]} 20. f4 {[%emt 0:00:48]} g6 {[%emt 0:00:16]} 21. Rhe1 {[%emt 0:05:24]} h6 {[%emt 0:02:37]} 22. Re5 {[%emt 0:02:10]} c6 {[%emt 0:00:17]} 23. Ke3 {[%emt 0:08:18]} Bg4 {[%emt 0:05:21]} 24. Nd1 {[%emt 0:05:03]} Bf5 {[%emt 0:01:06]} 25. Nc3 {[%emt 0:03:00]} g5 {[%emt 0:01:49]} 26. hxg5 {[%emt 0:01:24]} hxg5 {[%emt 0:00:07]} 27. Rf1 {[%emt 0:00:12]} gxf4+ {[%emt 0:06:53]} 28. Rxf4 {[%emt 0:02:07]} Bd7 {[%emt 0:03:54]} 29. Ne2 {[%emt 0:01:16]} a5 {[%emt 0:00:53]} 30. a3 {[%emt 0:01:57]} b6 {[%emt 0:03:39]} 31. b4 {[%emt 0:05:08]} axb4 {[%emt 0:01:57]} 32. axb4 {[%emt 0:00:25]} c5 {[%emt 0:03:09]} 33. Rxf7 Rxf7 {[%emt 0:25:25]} 34. Nf4 Rf5 {[%emt 0:00:30]} 1/2-1/2

[Event "FIDE World Senior-50 CC 2023"]
[Site "Terrasini"]
[Date "2023.10.27"]
[Round "3.2"]
[White "Mrva, Martin"]
[Black "Morovic Fernandez, Ivan"]
[Result "0-1"]
[ECO "B45"]
[WhiteElo "2366"]
[BlackElo "2488"]
[Annotator "ChessBase"]
[PlyCount "100"]
[EventDate "2023.10.22"]
[EventType "swiss"]
[EventCountry "ITA"]
[SourceTitle "playchess.com"]
[Source "ChessBase"]
[SourceQuality "1"]
[TimeControl "40/5400+30:1800+30"]

1. e4 {[%emt 0:00:04]} c5 {[%emt 0:00:19]} 2. Nf3 {[%emt 0:00:11]} e6 {[%emt 0:00:06]} 3. d4 {[%emt 0:02:30]} cxd4 {[%emt 0:00:25]} 4. Nxd4 {[%emt 0:00:06]} Nf6 {[%emt 0:00:24]} 5. Nc3 {[%emt 0:00:08]} Nc6 {[%emt 0:00:07]} 6. a3 {[%emt 0:01:25]} Be7 {[%emt 0:11:49]} 7. f4 {[%emt 0:16:14]} d5 {[%emt 0:07:46]} 8. e5 {[%emt 0:04:23]} Nxd4 {[%emt 0:01:47]} 9. Qxd4 {[%emt 0:02:12]} Nd7 {[%emt 0:00:07]} 10. Be3 {[%emt 0:14:33]} O-O {[%emt 0:07:11]} 11. O-O-O {[%emt 0:00:20]} a6 {[%emt 0:00:25]} 12. Be2 {[%emt 0:06:42]} Qc7 {[%emt 0:04:52]} 13. Bf3 {[%emt 0:18:28]} Rb8 {[%emt 0:03:12]} 14. Rhe1 {[%emt 0:09:54]} b5 {[%emt 0:12:06]} 15. Bxd5 {[%emt 0:00:12]} b4 {[%emt 0:01:08]} 16. axb4 {[%emt 0:00:06]} Rxb4 {[%emt 0:01:20]} 17. Qa7 {[%emt 0:06:59]} Qa5 {[%emt 0:06:41]} 18. Bc6 {[%emt 0:05:20]} Rxb2 {[%emt 0:06:54]} 19. Rd3 {[%emt 0:01:59]} Ba3 {[%emt 0:04:19]} 20. Kd2 {[%emt 0:02:37]} Bc5 {[%emt 0:05:41]} 21. Bxc5 {[%emt 0:00:17]} Nxc5 {[%emt 0:00:04]} 22. Rd6 {[%emt 0:00:18]} Bb7 {[%emt 0:02:38]} 23. Re3 {[%emt 0:02:35]} h6 {[%emt 0:07:58]} 24. f5 {[%emt 0:00:42]} Rc8 {[%emt 0:01:20]} 25. fxe6 {[%emt 0:00:32]} fxe6 {[%emt 0:02:16]} 26. Rg3 {[%emt 0:00:04]} Rxc6 {[%emt 0:04:12]} 27. Rxc6 {[%emt 0:01:13]} Ne4+ {[%emt 0:00:22]} 28. Kd3 {[%emt 0:02:07]} Nxg3 {[%emt 0:00:59]} 29. Qb8+ {[%emt 0:00:06]} Kh7 {[%emt 0:00:16]} 30. hxg3 {[%emt 0:00:06]} Bxc6 {[%emt 0:01:15]} 31. Qxb2 {[%emt 0:00:05]} Qxe5 {[%emt 0:00:04]} 32. Qb6 {[%emt 0:01:29]} Qxg3+ {[%emt 0:00:42]} 33. Kc4 {[%emt 0:00:11]} Qxg2 {[%emt 0:01:58]} 34. Kb3 {[%emt 0:00:08]} Bd5+ {[%emt 0:02:32]} 35. Kb2 {[%emt 0:00:16]} Qd2 {[%emt 0:00:40]} 36. Qb4 {[%emt 0:01:14]} Qe3 {[%emt 0:00:38]} 37. Na4 {[%emt 0:01:42]} h5 {[%emt 0:01:05]} 38. Nc5 {[%emt 0:00:14]} e5 {[%emt 0:00:54]} 39. Qb6 {[%emt 0:01:34]} Qd4+ {[%emt 0:00:39]} 40. Kc1 {[%emt 0:00:09]} h4 {[%emt 0:01:04]} 41. Qd6 {[%emt 0:01:35]} h3 {[%emt 0:02:50]} 42. Ne6 {[%emt 0:00:00]} Bxe6 {[%emt 0:06:46]} 43. Qxe6 {[%emt 0:00:00]} Qf4+ {[%emt 0:01:09]} 44. Kb2 {[%emt 0:00:00]} h2 {[%emt 0:00:28]} 45. Qh3+ {[%emt 0:00:13]} Kg6 {[%emt 0:00:45]} 46. Qg2+ {[%emt 0:00:06]} Kf5 {[%emt 0:01:08]} 47. Kb3 {[%emt 0:00:17]} Qe3+ {[%emt 0:01:49]} 48. c3 {[%emt 0:00:20]} Qg1 {[%emt 0:00:22]} 49. Qf3+ {[%emt 0:01:19]} Kg5 {[%emt 0:00:07]} 50. Qb7 {[%emt 0:01:03]} Qb1+ {[%emt 0:00:11]} 0-1

[Event "FIDE World Senior-50 CC 2023"]
[Site "Terrasini"]
[Date "2023.10.27"]
[Round "3.3"]
[White "Vlassov, Nikolai"]
[Black "Bischoff, Klaus"]
[Result "1/2-1/2"]
[ECO "B22"]
[WhiteElo "2283"]
[BlackElo "2473"]
[Annotator "ChessBase"]
[PlyCount "44"]
[EventDate "2023.10.22"]
[EventType "swiss"]
[EventCountry "ITA"]
[SourceTitle "playchess.com"]
[Source "ChessBase"]
[SourceQuality "1"]
[TimeControl "40/5400+30:1800+30"]

1. e4 {[%emt 0:00:04]} c5 {[%emt 0:00:14]} 2. c3 {[%emt 0:00:06]} Nf6 {[%emt 0:00:15]} 3. e5 {[%emt 0:00:05]} Nd5 {[%emt 0:00:08]} 4. d4 {[%emt 0:00:03]} cxd4 {[%emt 0:00:08]} 5. cxd4 {[%emt 0:00:05]} d6 {[%emt 0:00:41]} 6. Bc4 {[%emt 0:00:07]} Nb6 {[%emt 0:00:33]} 7. Bb3 {[%emt 0:00:06]} d5 {[%emt 0:00:54]} 8. Nc3 {[%emt 0:00:08]} Nc6 {[%emt 0:00:23]} 9. Be3 {[%emt 0:00:07]} Bf5 {[%emt 0:01:35]} 10. g4 {[%emt 0:00:35]} Bd7 {[%emt 0:01:16]} 11. f4 {[%emt 0:06:08]} e6 {[%emt 0:17:09]} 12. Nf3 {[%emt 0:01:05]} Be7 {[%emt 0:02:09]} 13. O-O {[%emt 0:02:58]} Na5 {[%emt 0:01:51]} 14. Bc2 {[%emt 0:01:24]} Rc8 {[%emt 0:12:47]} 15. Bd3 {[%emt 0:00:35]} Nbc4 {[%emt 0:05:03]} 16. Bc1 {[%emt 0:02:24]} Qb6 {[%emt 0:02:18]} 17. Qe2 {[%emt 0:01:37]} h5 {[%emt 0:04:11]} 18. h3 {[%emt 0:00:50]} hxg4 {[%emt 0:01:51]} 19. hxg4 {[%emt 0:00:02]} Nc6 {[%emt 0:00:11]} 20. Be3 {[%emt 0:17:34]} Nxe3 {[%emt 0:02:06]} 21. Qxe3 {[%emt 0:00:02]} Qxb2 {[%emt 0:00:13]} 22. Nb5 {[%emt 0:01:31]} Qb4 {[%emt 0:10:18]} 1/2-1/2

[Event "FIDE World Senior-50 CC 2023"]
[Site "Terrasini"]
[Date "2023.10.27"]
[Round "3.4"]
[White "Nadanian, Ashot"]
[Black "Minasian, Artashes"]
[Result "1/2-1/2"]
[ECO "B09"]
[WhiteElo "2279"]
[BlackElo "2462"]
[Annotator "RC"]
[PlyCount "26"]
[EventDate "2023.10.22"]
[EventType "swiss"]
[EventCountry "ITA"]
[SourceTitle "playchess.com"]
[Source "ChessBase"]
[SourceQuality "1"]
[TimeControl "40/5400+30:1800+30"]

1. e4 {[%emt 0:00:09]} g6 {[%emt 0:00:04]} 2. d4 {[%emt 0:00:20]} Bg7 {[%emt 0:00:05]} 3. Nc3 {[%emt 0:00:24]} d6 {[%emt 0:00:07]} 4. f4 {[%emt 0:00:28]} Nf6 {[%emt 0:00:19]} 5. Nf3 {[%emt 0:00:17]} c5 {[%emt 0:00:18]} 6. Bb5+ {[%emt 0:00:21]} Bd7 {[%emt 0:00:09]} 7. e5 {[%emt 0:00:22]} Ng4 {[%emt 0:00:13]} 8. e6 {[%emt 0:00:29]} fxe6 {[%emt 0:00:07]} 9. Ng5 {[%emt 0:00:12]} Bxb5 {[%emt 0:00:26]} 10. Nxe6 {[%emt 0:00:18]} Bxd4 {[%emt 0:00:11]} 11. Nxd8 {[%emt 0:00:51]} Bf2+ {[%emt 0:00:06]} 12. Kd2 {[%emt 0:00:04]} Be3+ {[%emt 0:00:05]} 13. Ke1 {[%emt 0:00:06]} Bf2+ {[%emt 0:00:03]} 1/2-1/2

[Event "FIDE World Senior-50 CC 2023"]
[Site "Terrasini"]
[Date "2023.10.27"]
[Round "3.5"]
[White "Matamoros Franco, Carlos S."]
[Black "Estremera Panos, Sergio"]
[Result "1/2-1/2"]
[ECO "A13"]
[WhiteElo "2455"]
[BlackElo "2232"]
[Annotator "ChessBase"]
[PlyCount "35"]
[EventDate "2023.10.22"]
[EventType "swiss"]
[EventCountry "ITA"]
[SourceTitle "playchess.com"]
[Source "ChessBase"]
[SourceQuality "1"]
[TimeControl "40/5400+30:1800+30"]

1. c4 {[%emt 0:00:05]} e6 {[%emt 0:00:15]} 2. g3 {[%emt 0:00:16]} d5 {[%emt 0:00:16]} 3. Bg2 {[%emt 0:00:16]} Nf6 {[%emt 0:00:14]} 4. Nf3 {[%emt 0:00:34]} dxc4 {[%emt 0:00:40]} 5. Qa4+ {[%emt 0:00:31]} Bd7 {[%emt 0:00:54]} 6. Qxc4 {[%emt 0:00:05]} c5 {[%emt 0:00:21]} 7. Ne5 {[%emt 0:03:16]} Qc8 {[%emt 0:00:36]} 8. Nc3 {[%emt 0:02:24]} Nc6 {[%emt 0:00:44]} 9. Nxd7 {[%emt 0:00:37]} Qxd7 {[%emt 0:00:06]} 10. O-O {[%emt 0:02:04]} Rc8 {[%emt 0:04:01]} 11. Qa4 {[%emt 1:25:52]} b6 {[%emt 0:12:40]} 12. d3 {[%emt 0:00:00]} Be7 {[%emt 0:00:27]} 13. Bd2 {[%emt 0:00:00]} O-O {[%emt 0:01:11]} 14. Rfc1 {[%emt 0:00:00]} Rfd8 {[%emt 0:05:03]} 15. Rab1 {[%emt 0:00:00]} h6 {[%emt 0:15:39]} 16. Kf1 {[%emt 0:00:00]} Bf8 {[%emt 0:25:33]} 17. a3 {[%emt 0:00:00]} Na5 {[%emt 0:09:17]} 18. Qxd7 {[%emt 0:00:00]} 1/2-1/2